fUST/lending_fUST_20260226
["ID","MTS","AMOUNT","RATE_DAILY","PERIOD"]
[406694362,1772091038435,-500.0,0.00016858,2]
[406694363,1772091038445,-250.0,0.00016986,2]
[406694364,1772091038454,-253.4405523,0.00017534,2]
[406694365,1772091038463,-161.2332085,0.00017553,2]
[406694366,1772091038472,-164.81437677,0.000177,2]
[406694367,1772091038482,-500.0,0.00017745,2]
[406694368,1772091038491,-837.84097702,0.00017885,2]
[406694369,1772091039647,-565.07105832,0.00017885,2]
[406694370,1772091039657,-224.24806233,0.00017917,2]
[406694371,1772091039667,-200.0,0.00018,2]
[406694372,1772091039676,-300.0,0.00018191,2]
[406694373,1772091039685,-744.71502317,0.00018192,2]
[406694374,1772091039695,-294.22351104,0.00018192,2]
[406694375,1772091039705,-500.0,0.00018192,2]
[406694376,1772091039714,-615.17045602,0.00018192,2]
[406694377,1772091039723,-500.0,0.00018192,2]
[406694378,1772091039732,-500.0,0.00018192,2]
[406694379,1772091039742,-172.42227549,0.00018192,2]
[406694380,1772091039769,-327.57772451,0.00018192,2]
[406694381,1772091039779,-500.0,0.00018192,2]
[406694382,1772091039788,-500.0,0.00018192,2]
[406694383,1772091039798,-500.0,0.00018192,2]
[406694384,1772091039807,-174.60808727,0.00018192,2]
[406694387,1772091041179,-95.14154804,0.00018192,2]
[406694390,1772091043658,-230.25036469,0.00018192,2]
[406694391,1772091043668,-500.0,0.00018192,2]
[406694392,1772091043678,-500.0,0.00018192,2]
[406694393,1772091043689,-504.74395958,0.00018192,2]
[406694394,1772091043698,-500.0,0.00018192,2]
[406694395,1772091043708,-500.0,0.00018192,2]
[406694396,1772091043718,-500.0,0.00018192,2]
[406694397,1772091043728,-500.0,0.00018192,2]
[406694398,1772091043738,-650.84455548,0.00018192,2]
[406694399,1772091043748,-189.21300511,0.00018192,2]
[406694400,1772091043757,-500.0,0.00018192,2]
[406694401,1772091043767,-500.0,0.00018192,2]
[406694402,1772091043777,-500.0,0.00018192,2]
[406694403,1772091043786,-500.0,0.00018192,2]
[406694404,1772091043796,-500.0,0.00018192,2]
[406694405,1772091043805,-500.0,0.00018192,2]
[406694406,1772091043815,-500.0,0.00018192,2]
[406694407,1772091043825,-500.0,0.00018192,2]
[406694408,1772091043835,-500.0,0.00018192,2]
[406694409,1772091043845,-481.98385477,0.00018281,2]
[406694410,1772091043855,-392.1,0.00018281,2]
[406694411,1772091043865,-4382.43902578,0.0001831,2]
[406694412,1772091043875,-715.0,0.000184,2]
[406694413,1772091043885,-898.0684408,0.00018407,2]
[406694414,1772091043894,-287.34657605,0.00018409,2]
[406694415,1772091043903,-500.0,0.0001841,2]
[406694416,1772091043913,-500.0,0.0001841,2]
[406694417,1772091043923,-500.0,0.0001841,2]
[406694418,1772091043934,-500.0,0.0001841,2]
[406694419,1772091043943,-250.0,0.0001841,2]
[406694420,1772091043953,-500.0,0.0001841,2]
[406694421,1772091043962,-250.0,0.0001841,2]
[406694422,1772091043972,-500.0,0.0001841,2]
[406694423,1772091043981,-250.0,0.0001841,2]
[406694424,1772091043991,-500.0,0.0001841,2]
[406694425,1772091044000,-250.0,0.0001841,2]
[406694426,1772091044010,-500.0,0.0001841,2]
[406694427,1772091044019,-250.0,0.0001841,2]
[406694428,1772091044028,-500.0,0.0001841,2]
[406694429,1772091044037,-250.0,0.0001841,2]
[406694430,1772091044047,-500.0,0.0001841,2]
[406694431,1772091044058,-250.0,0.0001841,2]
[406694432,1772091044067,-500.0,0.0001841,2]
[406694433,1772091044076,-250.0,0.0001841,2]
[406694434,1772091044085,-500.0,0.0001841,2]
[406694435,1772091044094,-250.0,0.0001841,2]
[406694436,1772091044103,-500.0,0.0001841,2]
[406694437,1772091044113,-250.0,0.0001841,2]
[406694438,1772091044123,-250.0,0.0001841,2]
[406694439,1772091044132,-250.0,0.0001841,2]
[406694440,1772091044142,-250.0,0.0001841,2]
[406694441,1772091044155,-575.513887,0.00018575,2]
[406694442,1772091044165,-151.0,0.00018614,2]
[406694443,1772091044174,-151.0,0.00018614,2]
[406694444,1772091044184,-151.0,0.00018614,2]
[406694445,1772091044194,-151.0,0.00018614,2]
[406694446,1772091044204,-151.0,0.00018614,2]
[406694447,1772091044214,-2579.17784983,0.00018614,2]
[406694448,1772091044225,-250.0,0.00018614,2]
[406694449,1772091044234,-151.0,0.00018614,2]
[406694450,1772091044243,-162.75399136,0.00018614,2]
[406694451,1772091044253,-151.0,0.00018614,2]
[406694452,1772091044262,-250.0,0.00018614,2]
[406694453,1772091044272,-151.0,0.00018614,2]
[406694454,1772091044446,-250.0,0.00018614,2]
[406694455,1772091044456,-151.0,0.00018614,2]
[406694456,1772091044466,-151.0,0.00018614,2]
[406694457,1772091044476,-151.0,0.00018614,2]
[406694458,1772091044485,-250.0,0.00018614,2]
[406694459,1772091044495,-151.0,0.00018614,2]
[406694460,1772091044504,-151.0,0.00018614,2]
[406694461,1772091044512,-250.0,0.00018614,2]
[406694462,1772091044521,-151.0,0.00018614,2]
[406694463,1772091044531,-151.0,0.00018614,2]
[406694464,1772091044540,-250.0,0.00018614,2]
[406694465,1772091044550,-151.0,0.00018614,2]
[406694466,1772091044559,-250.0,0.00018614,2]
[406694467,1772091044568,-151.0,0.00018614,2]
[406694468,1772091044578,-194.72792766,0.00018614,2]
[406694469,1772091044586,-250.0,0.00018614,2]
[406694470,1772091044595,-250.0,0.00018614,2]
[406694471,1772091044604,-151.0,0.00018614,2]
[406694472,1772091044614,-250.0,0.00018614,2]
[406694473,1772091044623,-201.93286099,0.00018614,2]
[406694474,1772091044631,-151.0,0.00018614,2]
[406694475,1772091044640,-250.0,0.00018614,2]
[406694476,1772091044650,-151.0,0.00018614,2]
[406694477,1772091044659,-209.40437684,0.00018614,2]
[406694478,1772091044668,-151.0,0.00018614,2]
[406694479,1772091044677,-151.0,0.00018614,2]
[406694480,1772091044686,-217.15233878,0.00018614,2]
[406694481,1772091044695,-151.0,0.00018614,2]
[406694482,1772091044704,-225.18697532,0.00018614,2]
[406694483,1772091044713,-250.0,0.00018614,2]
[406694484,1772091044722,-151.0,0.00018614,2]
[406694485,1772091044731,-233.51889341,0.00018614,2]
[406694486,1772091044740,-151.0,0.00018614,2]
[406694487,1772091044749,-250.0,0.00018614,2]
[406694488,1772091044758,-242.15909246,0.00018614,2]
[406694489,1772091044767,-151.0,0.00018614,2]
[406694490,1772091044776,-250.0,0.00018614,2]
[406694491,1772091044784,-250.0,0.00018614,2]
[406694492,1772091044793,-250.0,0.00018614,2]
[406694493,1772091044802,-151.0,0.00018614,2]
[406694494,1772091044811,-251.11897888,0.00018614,2]
[406694495,1772091044821,-250.0,0.00018614,2]
[406694496,1772091044830,-250.0,0.00018614,2]
[406694497,1772091044839,-151.0,0.00018614,2]
[406694498,1772091044848,-250.0,0.00018614,2]
[406694499,1772091044857,-250.0,0.00018614,2]
[406694500,1772091044866,-194.72792766,0.00018614,2]
[406694501,1772091044875,-151.0,0.00018614,2]
[406694502,1772091044884,-250.0,0.00018614,2]
[406694503,1772091044893,-250.0,0.00018614,2]
[406694504,1772091044902,-250.0,0.00018614,2]
[406694505,1772091044911,-151.0,0.00018614,2]
[406694506,1772091044920,-250.0,0.00018614,2]
[406694507,1772091044929,-250.0,0.00018614,2]
[406694508,1772091044938,-154.04416148,0.00018614,2]
[406694509,1772091044947,-250.0,0.00018614,2]
[406694510,1772091044955,-250.0,0.00018614,2]
[406694511,1772091044964,-250.0,0.00018614,2]
[406694512,1772091044973,-250.0,0.00018614,2]
[406694513,1772091044982,-250.0,0.00018614,2]
[406694514,1772091044990,-250.0,0.00018614,2]
[406694515,1772091044999,-250.0,0.00018614,2]
[406694516,1772091045008,-250.0,0.00018614,2]
[406694517,1772091045017,-250.0,0.00018614,2]
[406694518,1772091045026,-250.0,0.00018614,2]
[406694519,1772091045035,-250.0,0.00018614,2]
[406694520,1772091045044,-250.0,0.00018614,2]
[406694521,1772091045053,-250.0,0.00018614,2]
[406694522,1772091045061,-260.4103811,0.00018614,2]
[406694523,1772091045069,-250.0,0.00018614,2]
[406694524,1772091045078,-250.0,0.00018614,2]
[406694525,1772091045086,-250.0,0.00018614,2]
[406694526,1772091045094,-250.0,0.00018614,2]
[406694527,1772091045102,-270.0455652,0.00018614,2]
[406694528,1772091045111,-250.0,0.00018614,2]
[406694529,1772091045119,-250.0,0.00018614,2]
[406694530,1772091045127,-250.0,0.00018614,2]
[406694531,1772091045136,-280.03725112,0.00018614,2]
[406694532,1772091045145,-250.0,0.00018614,2]
[406694533,1772091045158,-250.0,0.00018614,2]
[406694534,1772091045167,-250.0,0.00018614,2]
[406694535,1772091045177,-290.39862941,0.00018614,2]
[406694536,1772091045186,-250.0,0.00018614,2]
[406694537,1772091045197,-301.1433787,0.00018614,2]
[406694538,1772091045206,-250.0,0.00018614,2]
[406694539,1772091045216,-250.0,0.00018614,2]
[406694540,1772091045225,-250.0,0.00018614,2]
[406694541,1772091045235,-250.0,0.00018614,2]
[406694542,1772091045244,-250.0,0.00018614,2]
[406694543,1772091045254,-250.0,0.00018614,2]
[406694544,1772091045265,-250.0,0.00018614,2]
[406694545,1772091045274,-250.0,0.00018614,2]
[406694546,1772091045284,-250.0,0.00018614,2]
[406694547,1772091045293,-250.0,0.00018614,2]
[406694548,1772091045303,-500.0,0.00018614,2]
[406694549,1772091045312,-250.0,0.00018614,2]
[406694550,1772091045321,-250.0,0.00018614,2]
[406694551,1772091045331,-500.0,0.00018614,2]
[406694552,1772091045341,-250.0,0.00018614,2]
[406694553,1772091045350,-500.0,0.00018614,2]
[406694554,1772091045360,-250.0,0.00018614,2]
[406694555,1772091045369,-500.0,0.00018614,2]
[406694556,1772091045379,-250.0,0.00018614,2]
[406694557,1772091045396,-500.0,0.00018614,2]
[406694558,1772091045414,-500.0,0.00018614,2]
[406694559,1772091045430,-500.0,0.00018614,2]
[406694560,1772091045450,-500.0,0.00018614,2]
[406694561,1772091045469,-250.0,0.00018614,2]
[406694562,1772091045486,-250.0,0.00018614,2]
[406694563,1772091045503,-500.0,0.00018614,2]
[406694564,1772091045519,-250.0,0.00018614,2]
[406694565,1772091045533,-250.0,0.00018614,2]
[406694566,1772091045552,-500.0,0.00018614,2]
[406694567,1772091045572,-250.0,0.00018614,2]
[406694568,1772091045590,-250.0,0.00018614,2]
[406694569,1772091045602,-500.0,0.00018679,2]
[406694570,1772091045621,-715.0,0.0001872,2]
[406694571,1772091045635,-600.0,0.00018847,2]
[406694572,1772091045650,-392.1,0.00018919,2]
[406694573,1772091045663,-43511.39553601,0.0001899,2]
[406694574,1772091045679,-2764.10041942,0.0001904,2]
[406694575,1772091045694,-2674.60743027,0.00019162,2]
[406694576,1772091045713,-575.513887,0.00019357,2]
[406694577,1772091045727,-414.0,0.0001936,2]
[406694578,1772091045744,-715.0,0.0001936,2]
[406694579,1772091045758,-2181.0,0.00019381,2]
[406694580,1772091045773,-1386.0,0.00019381,2]
[406694581,1772091045785,-637.0,0.00019381,2]
[406694582,1772091045797,-509.483,0.00019381,2]
[406694583,1772091045810,-728.0,0.00019381,2]
[406694584,1772091045823,-392.1,0.00019557,2]
[406694585,1772091045837,-608.6246436,0.000196,2]
[406694586,1772091045849,-500.0,0.00019613,2]
[406694587,1772091045861,-246.67802576,0.00019629,5]
[406694588,1772091045875,-231.42612093,0.0001968,2]
[406694590,1772091045889,-326.76112102,0.0001968,2]
[406694591,1772091045904,-698.0,0.0001968,2]
[406694593,1772091045919,-2773.56790519,0.0001971,2]
[406694594,1772091045933,-4382.43902576,0.00019822,2]
[406694595,1772091045949,-355.0,0.00019845,2]
[406694596,1772091045963,-258.45539388,0.00019917,2]
[406694597,1772091045978,-1000.0,0.0001994,2]
[406694598,1772091045993,-1000.0,0.0001994,2]
[406694599,1772091046007,-1000.0,0.0001994,2]
[406694600,1772091046022,-1000.0,0.0001994,2]
[406694601,1772091046036,-155.0,0.00019987,2]
[406694602,1772091046051,-65513.5259592,0.00019993,2]
[406694603,1772091046065,-152.3626893,0.00019993,2]
[406694604,1772091046080,-182359.12451166,0.0002,2]
[406694605,1772091046094,-1000.0,0.0002,2]
[406694606,1772091046109,-1000.0,0.0002,2]
[406694607,1772091046124,-281.6,0.0002,2]
[406694608,1772091046139,-5036.34,0.0002,2]
[406694609,1772091046155,-91065.86780003,0.0002,2]
[406694610,1772091047846,-250.0,0.00018614,2]
[406694611,1772091047856,-157.98442559,0.00018614,2]
[406694612,1772091048776,-61.25660808,0.00018614,2]
[406694613,1772091048843,-30.75896633,0.00018614,2]
[406694614,1772091048853,-250.0,0.00018614,2]
[406694615,1772091048863,-250.0,0.00018614,2]
[406694616,1772091048872,-250.0,0.00018614,2]
[406694617,1772091048881,-250.0,0.00018614,2]
[406694618,1772091048891,-1449.333013,0.000195,2]
[406694619,1772091048900,-14084.33050745,0.0002,2]
[406694620,1772091082060,-500.0,0.00013699,2]
[406694621,1772091082080,-500.0,0.00013699,2]
[406694622,1772091082102,-19.70035464,0.00013699,2]
[406694655,1772091865051,2037.0,0.00020349,120]
[406694656,1772091885541,9235.0,0.00012001,2]
[406694657,1772092006126,-536.87897828,0.00012749,2]
[406694658,1772092038083,-237.43844086,0.00012422,2]
[406694659,1772092156098,-4463.12102172,0.00012298,2]
[406694660,1772092156118,-467.98853544,0.00012422,2]
[406694661,1772092156139,-176.58584705,0.00012905,2]
[406694662,1772092156160,-300.0,0.00013271,2]
[406694663,1772092156180,-300.0,0.00013272,2]
[406694664,1772092156202,-1200.0,0.00013272,2]
[406694665,1772092156221,-626.24037135,0.00013273,2]
[406694666,1772092156241,-500.0,0.00013273,2]
[406694667,1772092156260,-196.02225194,0.00013273,2]
[406694668,1772092156280,-500.0,0.00013273,2]
[406694669,1772092156298,-385.81977507,0.00013273,2]
[406694670,1772092156317,-500.0,0.00013273,2]
[406694671,1772092156337,-500.0,0.00013273,2]
[406694672,1772092156361,-217.68553821,0.00013273,2]
[406694673,1772092156381,-3286.82926932,0.00013598,2]
[406694674,1772092156400,-508.16882015,0.00013696,2]
[406694675,1772092156419,-330.17309887,0.00013696,2]
[406694676,1772092160086,-308.18473621,0.00013696,2]
[406694677,1772092160118,-500.0,0.00013696,2]
[406694678,1772092160138,-500.0,0.00013696,2]
[406694679,1772092160162,-500.0,0.00013696,2]
[406694680,1772092160184,-500.0,0.00013696,2]
[406694681,1772092160208,-500.0,0.00013696,2]
[406694682,1772092160231,-500.0,0.00013696,2]
[406694683,1772092160252,-500.0,0.00013696,2]
[406694684,1772092160277,-500.0,0.00013696,2]
[406694685,1772092160298,-334.6325058,0.00013696,2]
[406694686,1772092160323,-500.0,0.00013696,2]
[406694687,1772092160347,-500.0,0.00013696,2]
[406694688,1772092160370,-500.0,0.00013696,2]
[406694689,1772092160394,-500.0,0.00013696,2]
[406694690,1772092160417,-500.0,0.00013696,2]
[406694691,1772092160440,-500.0,0.00013696,2]
[406694692,1772092160461,-500.0,0.00013696,2]
[406694693,1772092160485,-500.0,0.00013696,2]
[406694694,1772092160511,-500.0,0.00013696,2]
[406694695,1772092160536,-500.0,0.00013696,2]
[406694696,1772092160559,-500.0,0.00013696,2]
[406694697,1772092160583,-465.61468061,0.00013696,2]
[406694698,1772092160608,-500.0,0.00013696,2]
[406694699,1772092160631,-500.0,0.00013696,2]
[406694700,1772092160653,-500.0,0.00013696,2]
[406694701,1772092160676,-500.0,0.00013696,2]
[406694702,1772092160698,-500.0,0.00013696,2]
[406694703,1772092160722,-500.0,0.00013696,2]
[406694704,1772092160744,-500.0,0.00013696,2]
[406694705,1772092160766,-500.0,0.00013696,2]
[406694706,1772092160790,-500.0,0.00013696,2]
[406694707,1772092160813,-500.0,0.00013696,2]
[406694708,1772092160835,-500.0,0.00013696,2]
[406694709,1772092160858,-500.0,0.00013696,2]
[406694710,1772092160881,-500.0,0.00013696,2]
[406694711,1772092160905,-500.0,0.00013696,2]
[406694712,1772092160930,-500.0,0.00013696,2]
[406694713,1772092160953,-500.0,0.00013696,2]
[406694714,1772092160976,-500.0,0.00013696,2]
[406694715,1772092161001,-500.0,0.00013696,2]
[406694716,1772092161025,-500.0,0.00013696,2]
[406694717,1772092161048,-500.0,0.00013696,2]
[406694718,1772092161073,-500.0,0.00013696,2]
[406694719,1772092161097,-500.0,0.00013696,2]
[406694720,1772092161122,-500.0,0.00013696,2]
[406694721,1772092161146,-500.0,0.00013696,2]
[406694722,1772092161171,-500.0,0.00013696,2]
[406694723,1772092161195,-514.72738673,0.00013696,2]
[406694724,1772092161218,-481.65751205,0.00013696,2]
[406694725,1772092161242,-500.0,0.00013696,2]
[406694726,1772092161266,-500.0,0.00013696,2]
[406694727,1772092161288,-500.0,0.00013696,2]
[406694728,1772092161310,-455.03147917,0.00013696,2]
[406694729,1772092163130,-44.96852083,0.00013696,2]
[406694730,1772092163153,-500.0,0.00013696,2]
[406694731,1772092163177,-500.0,0.00013696,2]
[406694732,1772092163198,-500.0,0.00013696,2]
[406694733,1772092163220,-500.0,0.00013696,2]
[406694734,1772092163241,-500.0,0.00013696,2]
[406694735,1772092163263,-500.0,0.00013696,2]
[406694736,1772092163285,-500.0,0.00013696,2]
[406694737,1772092163306,-465.26244744,0.00013696,2]
[406694738,1772092163328,-500.0,0.00013696,2]
[406694739,1772092163350,-500.0,0.00013696,2]
[406694740,1772092163373,-500.0,0.00013696,2]
[406694741,1772092163395,-500.0,0.00013696,2]
[406694742,1772092163418,-500.0,0.00013696,2]
[406694743,1772092163439,-500.0,0.00013696,2]
[406694744,1772092163461,-500.0,0.00013696,2]
[406694745,1772092163483,-500.0,0.00013696,2]
[406694746,1772092163505,-500.0,0.00013696,2]
[406694747,1772092163528,-174.76724452,0.00013696,2]
[406694748,1772092163552,-500.0,0.00013696,2]
[406694749,1772092163578,-500.0,0.00013696,2]
[406694750,1772092163602,-612.74748742,0.00013696,2]
[406694751,1772092163623,-150.0,0.00013698,2]
[406694752,1772092163644,-1000.0,0.00013699,2]
[406694753,1772092163664,-500.0,0.00013699,2]
[406694754,1772092163683,-649.03909534,0.00013699,2]
[406694755,1772092163702,-500.0,0.00013699,2]
[406694756,1772092163721,-500.0,0.00013699,2]
[406694757,1772092163740,-250.16286953,0.00013699,2]
[406694758,1772092163758,-500.0,0.00013699,2]
[406694759,1772092163778,-500.0,0.00013699,2]
[406694760,1772092163796,-500.0,0.00013699,2]
[406694761,1772092163815,-500.0,0.00013699,2]
[406694762,1772092163835,-500.0,0.00013699,2]
[406694763,1772092163854,-527.43956154,0.00013699,2]
[406694764,1772092163874,-500.0,0.00013699,2]
[406694765,1772092163893,-488.7526599,0.00013699,2]
[406694766,1772092163914,-500.0,0.00013699,2]
[406694767,1772092163933,-500.0,0.00013699,2]
[406694768,1772092163953,-500.0,0.00013699,2]
[406694769,1772092163973,-500.0,0.00013699,2]
[406694770,1772092163992,-500.0,0.00013699,2]
[406694771,1772092164012,-162.01722321,0.00013699,2]
[406694772,1772092164031,-500.0,0.00013699,2]
[406694773,1772092164050,-500.0,0.00013699,2]
[406694774,1772092164068,-500.0,0.00013699,2]
[406694775,1772092164088,-438.16441978,0.00013699,2]
[406694776,1772092164107,-480.29964536,0.00013699,2]
[406694777,1772092164126,-475.41,0.000137,2]
[406694778,1772092164148,-475.41,0.000137,2]
[406694779,1772092164168,-475.41,0.000137,2]
[406694780,1772092164187,-475.41,0.000137,2]
[406694781,1772092164208,-475.41,0.000137,2]
[406694782,1772092164230,-475.41,0.000137,2]
[406694783,1772092164250,-475.41,0.000137,2]
[406694784,1772092164272,-475.41,0.000137,2]
[406694785,1772092164291,-475.41,0.000137,2]
[406694786,1772092164311,-150.0,0.00013753,2]
[406694787,1772092164330,-150.0,0.00013808,2]
[406694788,1772092164349,-500.0,0.0001382,2]
[406694789,1772092164369,-500.0,0.0001382,2]
[406694790,1772092164388,-497.65689516,0.00013821,2]
[406694791,1772092164408,-1000.0,0.00013821,2]
[406694792,1772092164428,-1000.0,0.00013821,2]
[406694793,1772092164449,-1000.0,0.00013821,2]
[406694794,1772092164468,-184.91419289,0.00013962,2]
[406694795,1772092164489,-151.0,0.00013962,2]
[406694796,1772092164509,-202.384503,0.00013962,2]
[406694797,1772092164529,-500.0,0.0001397,2]
[406694798,1772092164550,-354.10485374,0.0001397,2]
[406694799,1772092164571,-501.73046484,0.00013971,2]
[406694800,1772092164595,-300.0,0.00013972,2]
[406694801,1772092164619,-300.0,0.00013972,2]
[406694802,1772092164640,-300.0,0.00013972,2]
[406694803,1772092164662,-300.0,0.00013972,2]
[406694804,1772092164684,-300.0,0.00013972,2]
[406694805,1772092164707,-300.0,0.00013972,2]
[406694806,1772092164729,-300.0,0.00013972,2]
[406694807,1772092164750,-300.0,0.00013972,2]
[406694808,1772092164772,-300.0,0.00013972,2]
[406694809,1772092164795,-300.0,0.00013972,2]
[406694810,1772092164816,-300.0,0.00013972,2]
[406694811,1772092164839,-300.0,0.00013972,2]
[406694812,1772092164863,-300.0,0.00013972,2]
[406694813,1772092164887,-300.0,0.00013972,2]
[406694814,1772092164910,-300.0,0.00013972,2]
[406694815,1772092164933,-600.0,0.00013972,2]
[406694816,1772092164954,-526.15961935,0.00014246,2]
[406694817,1772092164973,-1131.24481472,0.00014247,2]
[406694818,1772092164993,-1000.0,0.00014247,2]
[406694819,1772092165013,-524.47667572,0.00014247,2]
[406694820,1772092165033,-326.80933351,0.00014247,2]
[406694821,1772092165052,-500.0,0.00014247,2]
[406694822,1772092165073,-1000.0,0.00014247,2]
[406694823,1772092165232,-1000.0,0.00014247,2]
[406694824,1772092165277,-187.88742907,0.00014247,2]
[406694825,1772092165299,-412.23483991,0.00014247,2]
[406694826,1772092165321,-1000.0,0.00014247,2]
[406694827,1772092165341,-1500.0,0.00014368,2]
[406694828,1772092165360,-1500.0,0.00014368,2]
[406694829,1772092165380,-1500.0,0.00014368,2]
[406694830,1772092165401,-420.0,0.0001455,2]
[406694831,1772092165421,-1680.0,0.00014599,2]
[406694832,1772092165445,-1527.96171076,0.00014795,2]
[406694833,1772092165465,-825.6354297,0.00014795,2]
[406694834,1772092165484,-1500.0,0.00014795,2]
[406694835,1772092165504,-1500.0,0.00014795,2]
[406694836,1772092165526,-208.37129952,0.00014905,2]
[406694837,1772092165551,-2000.0,0.00014916,2]
[406694838,1772092165571,-2000.0,0.00014916,2]
[406694839,1772092165590,-1747.22600417,0.00014916,2]
[406694840,1772092165611,-192.821314,0.00015068,2]
[406694841,1772092165630,-1006.2725259,0.00015342,2]
[406694842,1772092165649,-2000.0,0.00015342,2]
[406694843,1772092165672,-720.0,0.00015369,2]
[406694844,1772092165693,-732.81420429,0.00015464,2]
[406694845,1772092168110,-1267.18579571,0.00015464,2]
[406694846,1772092168132,-610.40990388,0.00015464,2]
[406694847,1772092172307,-770.67947259,0.00015464,2]
[406694848,1772092206303,500.0,0.00013699,2]
[406694849,1772092206351,7.38320074,0.00014247,2]
[406694891,1772092232454,-506.47525348,0.00013699,2]
[406694892,1772092232464,-503.77679887,0.00013699,2]
[406694893,1772092232474,-500.0,0.00013699,2]
[406694894,1772092232484,-992.61679926,0.00014247,2]
[406694895,1772092232493,-1510.64230417,0.00014795,2]
[406694896,1772092232502,-539.35478863,0.00015464,2]
[406694897,1772092232510,-206.0,0.00015799,2]
[406694898,1772092232519,-1151.0,0.00015799,2]
[406694899,1772092232528,-1000.0,0.000158,2]
[406694900,1772092232537,-317.43972876,0.000158,2]
[406695012,1772092238719,-682.56027124,0.000158,2]
[406695013,1772092238729,-1000.0,0.000158,2]
[406695014,1772092238739,-1000.0,0.000158,2]
[406695015,1772092238748,-335.64608222,0.000158,2]
[406695016,1772092238759,-664.35391778,0.000158,2]
[406695017,1772092238768,-1000.0,0.000158,2]
[406695018,1772092238777,-300.0,0.00016114,2]
[406695019,1772092238786,-300.0,0.00016114,2]
[406695020,1772092238795,-270.06589435,0.00016114,2]
[406695021,1772092238806,-29.93410565,0.00016114,2]
[406695022,1772092238816,-300.0,0.00016114,2]
[406695023,1772092238825,-300.0,0.00016114,2]
[406695024,1772092238834,-300.0,0.00016114,2]
[406695025,1772092238843,-240.15675199,0.00016905,2]
[406695026,1772092238853,-180.07,0.00016994,2]
[406695027,1772092238862,-370.17738917,0.00018191,2]
[406695028,1772092238874,-129.82261083,0.00018191,2]
[406695029,1772092238884,-744.71502317,0.0001824,2]
[406695030,1772092238893,-294.1,0.00018288,2]
[406695031,1772092238903,-403.0,0.0001872,2]
[406695032,1772092238913,-194.72792766,0.00018871,2]
[406695033,1772092238922,-201.93286099,0.00018871,2]
[406695034,1772092238932,-209.40437684,0.00018871,2]
[406695035,1772092238942,-156.587,0.00018871,2]
[406695036,1772092238951,-217.15233878,0.00018871,2]
[406695037,1772092238961,-225.18697532,0.00018871,2]
[406695038,1772092238970,-250.0,0.00018871,2]
[406695039,1772092238980,-250.0,0.00018871,2]
[406695040,1772092238990,-250.0,0.00018871,2]
[406695041,1772092238999,-250.0,0.00018871,2]
[406695042,1772092239009,-233.51889341,0.00018871,2]
[406695043,1772092239019,-250.0,0.00018871,2]
[406695044,1772092239028,-242.15909246,0.00018871,2]
[406695045,1772092239039,-251.11897888,0.00018871,2]
[406695046,1772092239049,-260.4103811,0.00018871,2]
[406695047,1772092239058,-270.0455652,0.00018871,2]
[406695048,1772092239068,-2579.17784983,0.00018871,2]
[406695049,1772092239076,-280.03725112,0.00018871,2]
[406695050,1772092239086,-290.39862941,0.00018871,2]
[406695051,1772092239095,-301.1433787,0.00018871,2]